[Event "Dalheimers Hus Rapid Open"]
[Site "Dalheimers Hus, Slottsskogsgatan 12, Gothenburg, Sweden"]
[Date "2024.04.14"]
[Round "2.2"]
[White "Kallen, Jonas"]
[Black "Johansson, Linus"]
[Result "0-1"]
[TimeControl "15 minutes + 5 seconds per move from move one."]
[BlackTitle "IM"]
[WhiteFideId "1712896"]
[BlackFideId "1711113"]
[WhiteElo "2021"]
[BlackElo "2427"]

1. e4 {[%clk 00:15:07]} {[%emt 00:00:03]} c5 {[%clk 00:15:09]} {[%emt
00:00:02]} 2. Nf3 {[%clk 00:15:09]} {[%emt 00:00:03]} d6 {[%clk 00:15:13]}
{[%emt 00:00:01]} 3. d4 {[%clk 00:15:12]} {[%emt 00:00:02]} cxd4 {[%clk
00:15:16]} {[%emt 00:00:02]} 4. Nxd4 {[%clk 00:15:15]} Nf6 {[%clk 00:15:20]}
{[%emt 00:00:01]} 5. Nc3 {[%clk 00:15:19]} {[%emt 00:00:01]} a6 {[%clk
00:15:24]} {[%emt 00:00:02]} 6. Be2 {[%clk 00:15:04]} {[%emt 00:00:20]} e5
{[%clk 00:15:21]} {[%emt 00:00:07]} 7. Nb3 {[%clk 00:15:02]} {[%emt 00:00:07]}
Be7 {[%clk 00:15:22]} {[%emt 00:00:04]} 8. O-O {[%clk 00:14:41]} {[%emt
00:00:27]} O-O {[%clk 00:14:46]} {[%emt 00:00:41]} 9. Bg5 {[%clk 00:13:48]}
{[%emt 00:00:57]} Nbd7 {[%clk 00:13:59]} {[%emt 00:00:52]} 10. Qd2 {[%clk
00:13:34]} {[%emt 00:00:19]} b5 {[%clk 00:13:33]} {[%emt 00:00:32]} 11. a3
{[%clk 00:13:16]} {[%emt 00:00:23]} Bb7 {[%clk 00:13:28]} {[%emt 00:00:10]} 12.
f3 {[%clk 00:13:12]} {[%emt 00:00:09]} h6 {[%clk 00:12:37]} {[%emt 00:00:56]}
13. Be3 {[%clk 00:12:43]} {[%emt 00:00:34]} Rc8 {[%clk 00:11:16]} {[%emt
00:01:26]} 14. Rad1 {[%clk 00:11:11]} {[%emt 00:01:36]} Qc7 {[%clk 00:10:54]}
{[%emt 00:00:28]} 15. Nc1 {[%clk 00:10:19]} {[%emt 00:00:57]} Nb6 {[%clk
00:10:37]} {[%emt 00:00:22]} 16. Kh1 {[%clk 00:09:46]} {[%emt 00:00:38]} Rfd8
{[%clk 00:10:35]} {[%emt 00:00:07]} 17. Bxb6 {[%clk 00:09:08]} {[%emt
00:00:43]} Qxb6 {[%clk 00:10:38]} {[%emt 00:00:02]} 18. Nd5 {[%clk 00:09:10]}
{[%emt 00:00:02]} Nxd5 {[%clk 00:10:26]} {[%emt 00:00:17]} 19. exd5 {[%clk
00:09:14]} {[%emt 00:00:01]} Bg5 {[%clk 00:10:21]} {[%emt 00:00:11]} 20. Qd3
{[%clk 00:09:13]} {[%emt 00:00:06]} Qc5 {[%clk 00:10:02]} {[%emt 00:00:23]} 21.
c3 {[%clk 00:07:39]} {[%emt 00:01:40]} Bxc1 {[%clk 00:10:02]} {[%emt 00:00:05]}
22. Rxc1 {[%clk 00:07:43]} Qxd5 {[%clk 00:10:04]} {[%emt 00:00:03]} 23. Qxd5
{[%clk 00:07:01]} {[%emt 00:00:47]} Bxd5 {[%clk 00:10:07]} {[%emt 00:00:01]} 24.
a4 {[%clk 00:07:03]} {[%emt 00:00:03]} bxa4 {[%clk 00:10:02]} {[%emt 00:00:11]}
25. Bxa6 {[%clk 00:07:03]} {[%emt 00:00:04]} Rb8 {[%clk 00:10:06]} {[%emt
00:00:02]} 26. Rf2 {[%clk 00:07:03]} {[%emt 00:00:05]} Bb3 {[%clk 00:09:35]}
{[%emt 00:00:36]} 27. Re1 {[%clk 00:06:08]} {[%emt 00:00:59]} Rb6 {[%clk
00:09:33]} {[%emt 00:00:08]} 28. Bd3 {[%clk 00:06:08]} {[%emt 00:00:05]} Rdb8
{[%clk 00:09:30]} {[%emt 00:00:08]} 29. h3 {[%clk 00:05:52]} {[%emt 00:00:21]}
f6 {[%clk 00:09:05]} {[%emt 00:00:29]} 30. Ree2 {[%clk 00:05:39]} {[%emt
00:00:18]} g5 {[%clk 00:09:06]} {[%emt 00:00:04]} 31. Kh2 {[%clk 00:05:33]}
{[%emt 00:00:12]} Kf7 {[%clk 00:08:57]} {[%emt 00:00:14]} 32. Rd2 {[%clk
00:05:19]} {[%emt 00:00:19]} Rc8 {[%clk 00:08:52]} {[%emt 00:00:10]} 33. Kg3
{[%clk 00:04:54]} {[%emt 00:00:29]} Be6 {[%clk 00:08:21]} {[%emt 00:00:36]} 34.
Be2 {[%clk 00:04:24]} {[%emt 00:00:36]} Ke7 {[%clk 00:07:58]} {[%emt 00:00:28]}
35. Bd1 {[%clk 00:04:05]} {[%emt 00:00:24]} Ra6 {[%clk 00:08:02]} {[%emt
00:00:01]} 36. Rc2 {[%clk 00:03:52]} {[%emt 00:00:17]} a3 {[%clk 00:07:38]}
{[%emt 00:00:29]} 37. bxa3 {[%clk 00:02:50]} {[%emt 00:01:08]} Rxa3 {[%clk
00:07:41]} {[%emt 00:00:02]} 0-1

[Event "Dalheimers Hus Rapid Open"]
[Site "Dalheimers Hus, Slottsskogsgatan 12, Gothenburg, Sweden"]
[Date "2024.04.14"]
[Round "2.3"]
[White "Hellers, Ferdinand"]
[Black "Gillefalk, Bjorn"]
[Result "1-0"]
[TimeControl "15 minutes + 5 seconds per move from move one."]
[WhiteTitle "GM"]
[WhiteFideId "1700022"]
[BlackFideId "1708821"]
[WhiteElo "2410"]
[BlackElo "1987"]

1. e4 {[%clk 00:15:03]} {[%emt 00:00:06]} c5 {[%clk 00:15:08]} {[%emt
00:00:02]} 2. Nf3 {[%clk 00:15:04]} {[%emt 00:00:04]} Nc6 {[%clk 00:15:11]}
{[%emt 00:00:02]} 3. d4 {[%clk 00:15:02]} {[%emt 00:00:08]} cxd4 {[%clk
00:15:13]} {[%emt 00:00:02]} 4. Nxd4 {[%clk 00:15:05]} {[%emt 00:00:02]} e5
{[%clk 00:15:16]} {[%emt 00:00:03]} 5. Nb5 {[%clk 00:15:03]} {[%emt 00:00:07]}
d6 {[%clk 00:15:19]} {[%emt 00:00:03]} 6. c4 {[%clk 00:15:04]} {[%emt
00:00:03]} Be6 {[%clk 00:15:10]} {[%emt 00:00:14]} 7. N1c3 {[%clk 00:14:26]}
{[%emt 00:00:42]} a6 {[%clk 00:15:12]} {[%emt 00:00:04]} 8. Na3 {[%clk
00:14:26]} {[%emt 00:00:04]} g6 {[%clk 00:14:54]} {[%emt 00:00:23]} 9. Be3
{[%clk 00:14:03]} {[%emt 00:00:28]} Nf6 {[%clk 00:14:20]} {[%emt 00:00:40]} 10.
Be2 {[%clk 00:13:59]} {[%emt 00:00:08]} Bg7 {[%clk 00:14:23]} {[%emt 00:00:02]}
11. O-O {[%clk 00:13:47]} {[%emt 00:00:17]} O-O {[%clk 00:14:16]} {[%emt
00:00:13]} 12. Nc2 {[%clk 00:13:43]} {[%emt 00:00:09]} Rc8 {[%clk 00:13:50]}
{[%emt 00:00:31]} 13. b3 {[%clk 00:13:08]} {[%emt 00:00:40]} b5 {[%clk
00:12:45]} {[%emt 00:01:11]} 14. cxb5 {[%clk 00:12:37]} {[%emt 00:00:36]} axb5
{[%clk 00:12:48]} {[%emt 00:00:02]} 15. Nxb5 {[%clk 00:11:51]} {[%emt
00:00:50]} Nxe4 {[%clk 00:12:50]} {[%emt 00:00:02]} 16. f3 {[%clk 00:11:29]}
{[%emt 00:00:27]} Nf6 {[%clk 00:11:54]} {[%emt 00:01:02]} 17. Nxd6 {[%clk
00:10:33]} {[%emt 00:01:01]} Rb8 {[%clk 00:09:33]} {[%emt 00:02:26]} 18. Bc4
{[%clk 00:08:08]} {[%emt 00:02:29]} Bxc4 {[%clk 00:07:24]} {[%emt 00:02:14]} 19.
Nxc4 {[%clk 00:08:10]} {[%emt 00:00:03]} Nd5 {[%clk 00:07:27]} {[%emt
00:00:03]} 20. Bc5 {[%clk 00:07:48]} {[%emt 00:00:26]} Re8 {[%clk 00:07:21]}
{[%emt 00:00:12]} 21. N2e3 {[%clk 00:05:06]} {[%emt 00:02:46]} Nd4 {[%clk
00:05:16]} {[%emt 00:02:11]} 22. Bxd4 {[%clk 00:04:51]} {[%emt 00:00:20]} exd4
{[%clk 00:05:15]} {[%emt 00:00:06]} 23. Nxd5 {[%emt 00:00:03]} Qxd5 {[%clk
00:05:15]} {[%emt 00:00:03]} 24. Qd3 {[%clk 00:04:56]} {[%emt 00:00:03]} Re6
{[%clk 00:04:39]} {[%emt 00:00:42]} 25. Rfe1 {[%clk 00:04:48]} {[%emt
00:00:12]} Rbe8 {[%clk 00:04:34]} {[%emt 00:00:10]} 26. Rxe6 {[%clk 00:04:52]}
{[%emt 00:00:03]} Qxe6 {[%clk 00:03:45]} {[%emt 00:00:53]} 27. Kf1 {[%clk
00:04:47]} {[%emt 00:00:09]} Bh6 {[%clk 00:03:18]} {[%emt 00:00:33]} 28. a4
{[%clk 00:03:07]} {[%emt 00:01:44]} Be3 {[%clk 00:03:12]} {[%emt 00:00:11]} 29.
Re1 {[%clk 00:02:45]} {[%emt 00:00:27]} Qe7 {[%clk 00:02:46]} {[%emt 00:00:33]}
30. g3 {[%emt 00:00:45]} Qb7 {[%clk 00:02:19]} 31. Kg2 {[%clk 00:02:35]} {[%emt
00:00:05]} Qa6 {[%clk 00:01:44]} {[%emt 00:00:41]} 32. a5 {[%clk 00:02:20]}
{[%emt 00:00:19]} Qb5 {[%clk 00:01:25]} {[%emt 00:00:24]} 33. Rd1 {[%clk
00:01:44]} {[%emt 00:00:41]} Qb4 {[%clk 00:01:12]} {[%emt 00:00:20]} 34. a6
{[%clk 00:01:30]} {[%emt 00:00:18]} Ra8 {[%clk 00:00:58]} {[%emt 00:00:19]} 35.
Ra1 {[%clk 00:01:21]} {[%emt 00:00:13]} Qb5 {[%clk 00:00:50]} {[%emt 00:00:14]}
36. a7 {[%clk 00:01:10]} {[%emt 00:00:16]} Qb7 {[%clk 00:00:43]} {[%emt
00:00:11]} 37. Nxe3 {[%clk 00:01:05]} {[%emt 00:00:10]} 1-0

[Event "Dalheimers Hus Rapid Open"]
[Site "Dalheimers Hus, Slottsskogsgatan 12, Gothenburg, Sweden"]
[Date "2024.04.14"]
[Round "2.4"]
[White "Hansson, Susanne"]
[Black "Cramling, Pia"]
[Result "0-1"]
[TimeControl "15 minutes + 5 seconds per move from move one."]
[BlackTitle "GM"]
[WhiteFideId "1703820"]
[BlackFideId "1700030"]
[WhiteElo "2011"]
[BlackElo "2377"]

1. e4 {[%clk 00:00:00]} {[%emt 00:19:33]} c5 {[%clk 00:00:00]} 2. b4 {[%clk
00:00:00]} {[%emt 00:00:02]} cxb4 {[%clk 00:00:00]} {[%emt 00:00:05]} 3. d4
{[%clk 00:00:00]} d5 {[%clk 00:00:00]} {[%emt 00:00:09]} 4. e5 {[%clk
00:00:00]} {[%emt 00:00:02]} Nc6 {[%clk 00:00:00]} {[%emt 00:00:07]} 5. a3
{[%clk 00:00:00]} {[%emt 00:00:02]} Qb6 {[%clk 00:15:03]} {[%emt 00:01:20]} 6.
Nf3 {[%clk 00:14:24]} {[%emt 00:00:46]} Bg4 {[%clk 00:15:00]} {[%emt 00:00:08]}
7. Bb2 {[%clk 00:10:55]} {[%emt 00:03:35]} e6 {[%clk 00:12:39]} {[%emt
00:02:26]} 8. c3 {[%clk 00:09:23]} {[%emt 00:01:37]} bxc3 {[%clk 00:12:09]}
{[%emt 00:00:35]} 9. Bxc3 {[%clk 00:09:26]} {[%emt 00:00:03]} Bxf3 {[%clk
00:11:27]} {[%emt 00:00:47]} 10. gxf3 {[%clk 00:09:19]} {[%emt 00:00:11]} Nge7
{[%clk 00:11:13]} {[%emt 00:00:19]} 11. Ra2 {[%clk 00:09:03]} {[%emt 00:00:22]}
Nf5 {[%clk 00:10:30]} {[%emt 00:00:48]} 12. Rb2 {[%clk 00:09:06]} {[%emt
00:00:02]} Qc7 {[%clk 00:10:33]} {[%emt 00:00:01]} 13. Bb5 {[%clk 00:08:47]}
{[%emt 00:00:25]} Be7 {[%clk 00:10:28]} {[%emt 00:00:09]} 14. Qa4 {[%clk
00:08:15]} {[%emt 00:00:38]} O-O {[%clk 00:10:08]} {[%emt 00:00:24]} 15. O-O
{[%clk 00:07:56]} {[%emt 00:00:25]} Rab8 {[%clk 00:09:20]} {[%emt 00:00:51]} 16.
Nd2 {[%clk 00:07:49]} {[%emt 00:00:13]} Rfc8 {[%clk 00:06:53]} {[%emt
00:02:32]} 17. Nb3 {[%clk 00:07:03]} {[%emt 00:00:52]} a6 {[%clk 00:06:17]}
{[%emt 00:00:41]} 18. Bd3 {[%clk 00:05:49]} {[%emt 00:01:19]} b5 {[%clk
00:05:28]} {[%emt 00:00:54]} 19. Qxa6 {[%clk 00:05:52]} {[%emt 00:00:02]} Ra8
{[%clk 00:04:48]} {[%emt 00:00:45]} 20. Qxb5 {[%clk 00:05:49]} {[%emt
00:00:07]} Rcb8 {[%clk 00:04:52]} 21. Ba5 {[%clk 00:04:41]} {[%emt 00:01:13]}
Nxa5 {[%clk 00:04:52]} {[%emt 00:00:06]} 22. Rc1 {[%clk 00:04:10]} {[%emt
00:00:36]} Qd8 {[%clk 00:04:25]} {[%emt 00:00:31]} 23. Qa4 {[%clk 00:03:33]}
{[%emt 00:00:43]} Nxb3 {[%clk 00:04:04]} {[%emt 00:00:25]} 24. Bf1 {[%emt
00:00:07]} 0-1

[Event "Dalheimers Hus Rapid Open"]
[Site "Dalheimers Hus, Slottsskogsgatan 12, Gothenburg, Sweden"]
[Date "2024.04.14"]
[Round "2.5"]
[White "Winsnes, Rikard"]
[Black "Lejhall, Jens"]
[Result "1-0"]
[TimeControl "15 minutes + 5 seconds per move from move one."]
[WhiteTitle "IM"]
[WhiteFideId "1700430"]
[BlackFideId "1708864"]
[WhiteElo "2352"]
[BlackElo "1971"]

1. e4 {[%clk 00:00:00]} {[%emt 00:15:13]} c5 {[%clk 00:00:00]} 2. Nf3 {[%emt
00:00:06]} Nc6 3. d4 {[%clk 00:00:00]} {[%emt 00:00:06]} cxd4 {[%clk 00:00:00]}
{[%emt 00:00:01]} 4. Nxd4 {[%clk 00:00:00]} {[%emt 00:00:04]} g6 {[%clk
00:00:00]} {[%emt 00:00:04]} 5. c4 {[%clk 00:15:03]} {[%emt 00:00:40]} Nf6
{[%clk 00:15:06]} {[%emt 00:00:05]} 6. Nc3 {[%clk 00:15:04]} {[%emt 00:00:04]}
d6 {[%clk 00:15:09]} {[%emt 00:00:02]} 7. Nc2 {[%clk 00:14:22]} {[%emt
00:00:46]} Bg7 {[%clk 00:15:04]} {[%emt 00:00:10]} 8. Be2 {[%clk 00:14:07]}
{[%emt 00:00:19]} Nd7 {[%clk 00:14:59]} {[%emt 00:00:11]} 9. Bd2 {[%clk
00:13:51]} {[%emt 00:00:21]} O-O {[%clk 00:14:54]} {[%emt 00:00:11]} 10. O-O
{[%clk 00:13:52]} {[%emt 00:00:04]} Nc5 {[%clk 00:14:56]} {[%emt 00:00:03]} 11.
b4 {[%clk 00:13:20]} {[%emt 00:00:36]} Bxc3 {[%clk 00:13:49]} {[%emt 00:01:13]}
12. Bxc3 {[%clk 00:13:24]} {[%emt 00:00:01]} Nxe4 {[%clk 00:13:50]} {[%emt
00:00:04]} 13. Bb2 {[%clk 00:13:16]} {[%emt 00:00:12]} e5 {[%clk 00:12:45]}
{[%emt 00:01:11]} 14. Bf3 {[%clk 00:10:43]} {[%emt 00:02:38]} Ng5 {[%clk
00:12:32]} {[%emt 00:00:17]} 15. Bd5 {[%clk 00:10:20]} {[%emt 00:00:28]} Ne6
{[%clk 00:12:10]} {[%emt 00:00:27]} 16. Kh1 {[%clk 00:10:04]} {[%emt 00:00:21]}
Qe7 {[%clk 00:10:31]} {[%emt 00:01:45]} 17. Qd2 {[%clk 00:09:15]} {[%emt
00:00:54]} Bd7 {[%clk 00:10:26]} {[%emt 00:00:10]} 18. b5 {[%clk 00:08:47]}
{[%emt 00:00:33]} Ncd4 {[%clk 00:10:26]} {[%emt 00:00:05]} 19. Nxd4 {[%clk
00:08:39]} {[%emt 00:00:13]} Nxd4 {[%clk 00:09:52]} {[%emt 00:00:38]} 20. Bxd4
{[%clk 00:08:35]} {[%emt 00:00:09]} exd4 {[%clk 00:09:56]} {[%emt 00:00:02]} 21.
Bxb7 {[%clk 00:08:37]} {[%emt 00:00:03]} Rab8 {[%clk 00:09:47]} {[%emt
00:00:14]} 22. Bd5 {[%clk 00:08:34]} {[%emt 00:00:08]} Qf6 {[%clk 00:08:25]}
{[%emt 00:01:27]} 23. Rad1 {[%clk 00:07:48]} {[%emt 00:00:52]} Rfe8 {[%clk
00:08:05]} {[%emt 00:00:24]} 24. Bf3 {[%clk 00:07:33]} {[%emt 00:00:19]} Be6
{[%clk 00:06:27]} {[%emt 00:01:44]} 25. Qxd4 {[%clk 00:07:22]} {[%emt
00:00:15]} Qxd4 {[%clk 00:06:30]} {[%emt 00:00:02]} 26. Rxd4 {[%clk 00:07:27]}
Rec8 {[%clk 00:06:18]} {[%emt 00:00:17]} 27. Bc6 {[%clk 00:07:26]} {[%emt
00:00:05]} a6 {[%clk 00:06:15]} {[%emt 00:00:09]} 28. a4 {[%clk 00:07:21]}
{[%emt 00:00:10]} Kf8 {[%clk 00:06:01]} {[%emt 00:00:19]} 29. h3 {[%clk
00:06:22]} {[%emt 00:01:03]} Ke7 {[%clk 00:05:40]} {[%emt 00:00:26]} 30. f4
{[%clk 00:06:18]} {[%emt 00:00:09]} Rc7 {[%clk 00:05:07]} {[%emt 00:00:39]} 31.
g4 {[%clk 00:06:16]} {[%emt 00:00:07]} Rd8 {[%clk 00:04:35]} {[%emt 00:00:38]}
32. f5 {[%clk 00:05:54]} {[%emt 00:00:26]} gxf5 {[%clk 00:04:38]} {[%emt
00:00:02]} 33. gxf5 {[%clk 00:05:58]} Bd7 {[%clk 00:04:38]} {[%emt 00:00:05]}
34. f6+ {[%clk 00:05:34]} {[%emt 00:00:28]} Kf8 {[%clk 00:04:37]} {[%emt
00:00:07]} 35. Bxd7 {[%clk 00:04:48]} {[%emt 00:00:51]} Rdxd7 {[%clk 00:04:00]}
{[%emt 00:00:42]} 36. Rg4 {[%clk 00:04:51]} Rd8 {[%emt 00:00:46]} 37. Rg7
{[%clk 00:04:46]} Rxc4 {[%clk 00:03:09]} {[%emt 00:00:25]} 38. Rxh7 {[%clk
00:04:33]} {[%emt 00:00:19]} Ke8 {[%clk 00:03:12]} {[%emt 00:00:01]} 39. Re1+
{[%clk 00:04:26]} {[%emt 00:00:12]} Kd7 {[%clk 00:03:16]} {[%emt 00:00:02]} 40.
Rxf7+ {[%clk 00:04:30]} {[%emt 00:00:02]} Kc8 {[%clk 00:03:18]} {[%emt
00:00:04]} 41. b6 {[%clk 00:04:19]} {[%emt 00:00:16]} Rh8 {[%clk 00:03:19]}
{[%emt 00:00:03]} 42. Re3 {[%clk 00:04:22]} Rc1+ {[%clk 00:01:14]} {[%emt
00:02:11]} 43. Kh2 {[%clk 00:04:24]} {[%emt 00:00:03]} Rc2+ {[%clk 00:01:15]}
{[%emt 00:00:04]} 44. Kg3 {[%clk 00:04:27]} {[%emt 00:00:01]} Rc1 {[%clk
00:01:00]} {[%emt 00:00:21]} 45. Ra7 {[%clk 00:04:25]} {[%emt 00:00:07]} Rg8+
{[%clk 00:00:57]} {[%emt 00:00:07]} 46. Kf2 {[%clk 00:04:21]} {[%emt 00:00:09]}
Rc2+ {[%clk 00:00:34]} {[%emt 00:00:29]} 47. Kf3 {[%clk 00:04:18]} {[%emt
00:00:08]} Kb8 {[%clk 00:00:36]} {[%emt 00:00:03]} 48. f7 {[%clk 00:04:21]}
{[%emt 00:00:02]} Rf8 {[%clk 00:00:35]} {[%emt 00:00:05]} 49. Re8+ {[%clk
00:04:25]} {[%emt 00:00:02]} Rc8 {[%clk 00:00:37]} {[%emt 00:00:03]} 50. Rxf8
{[%clk 00:04:29]} {[%emt 00:00:01]} Rxf8 {[%clk 00:00:40]} {[%emt 00:00:02]} 51.
Re7 {[%clk 00:04:33]} 1-0

[Event "Dalheimers Hus Rapid Open"]
[Site "Dalheimers Hus, Slottsskogsgatan 12, Gothenburg, Sweden"]
[Date "2024.04.14"]
[Round "2.6"]
[White "Wellevit, Tomas"]
[Black "Storme, Isak"]
[Result "1/2-1/2"]
[TimeControl "15 minutes + 5 seconds per move from move one."]
[BlackTitle "IM"]
[WhiteFideId "1731963"]
[BlackFideId "1728113"]
[WhiteElo "1978"]
[BlackElo "2352"]

1. e4 {[%clk 00:15:09]} {[%emt 00:00:01]} e5 {[%clk 00:15:05]} {[%emt
00:00:05]} 2. Bc4 {[%clk 00:15:00]} {[%emt 00:00:14]} Nf6 {[%clk 00:14:57]}
{[%emt 00:00:13]} 3. d3 {[%clk 00:15:02]} {[%emt 00:00:03]} Nc6 {[%clk
00:14:46]} {[%emt 00:00:16]} 4. Nf3 {[%clk 00:15:02]} {[%emt 00:00:05]} Bc5
{[%clk 00:14:45]} {[%emt 00:00:06]} 5. Bg5 {[%clk 00:15:00]} {[%emt 00:00:07]}
h6 {[%clk 00:14:46]} {[%emt 00:00:03]} 6. Be3 {[%clk 00:14:58]} {[%emt
00:00:08]} d6 {[%clk 00:14:40]} {[%emt 00:00:11]} 7. h3 {[%clk 00:14:49]}
{[%emt 00:00:14]} Bxe3 {[%clk 00:14:01]} {[%emt 00:00:44]} 8. fxe3 {[%clk
00:14:52]} {[%emt 00:00:01]} Be6 {[%clk 00:14:01]} {[%emt 00:00:05]} 9. Nbd2
{[%clk 00:14:54]} {[%emt 00:00:03]} Qd7 {[%clk 00:13:55]} {[%emt 00:00:11]} 10.
Qe2 {[%clk 00:14:51]} {[%emt 00:00:09]} O-O-O {[%clk 00:13:34]} {[%emt
00:00:25]} 11. Bb5 {[%clk 00:14:55]} {[%emt 00:00:02]} a6 {[%clk 00:12:11]}
{[%emt 00:01:28]} 12. Ba4 {[%clk 00:14:59]} {[%emt 00:00:02]} b5 {[%clk
00:12:08]} {[%emt 00:00:08]} 13. Bb3 {[%clk 00:15:02]} {[%emt 00:00:01]} Kb7
{[%clk 00:12:05]} {[%emt 00:00:07]} 14. O-O-O {[%clk 00:15:00]} {[%emt
00:00:08]} Na5 {[%clk 00:11:33]} {[%emt 00:00:37]} 15. d4 {[%clk 00:13:17]}
{[%emt 00:01:48]} Bxb3 {[%clk 00:10:06]} {[%emt 00:01:32]} 16. axb3 {[%clk
00:13:19]} {[%emt 00:00:02]} Nc6 {[%clk 00:09:55]} {[%emt 00:00:16]} 17. d5
{[%clk 00:12:14]} {[%emt 00:01:10]} Ne7 {[%clk 00:09:16]} {[%emt 00:00:44]} 18.
Qd3 {[%clk 00:11:58]} {[%emt 00:00:21]} c6 {[%clk 00:08:34]} {[%emt 00:00:47]}
19. c4 {[%clk 00:11:57]} {[%emt 00:00:06]} c5 {[%clk 00:08:27]} {[%emt
00:00:13]} 20. Kc2 {[%clk 00:11:39]} {[%emt 00:00:23]} Nc8 {[%clk 00:07:13]}
{[%emt 00:01:18]} 21. Ra1 {[%clk 00:11:38]} {[%emt 00:00:06]} b4 {[%clk
00:06:54]} {[%emt 00:00:24]} 22. Rhf1 {[%clk 00:11:31]} {[%emt 00:00:12]} Ne8
{[%clk 00:06:36]} {[%emt 00:00:22]} 23. Qe2 {[%clk 00:10:40]} {[%emt 00:00:57]}
Qe7 {[%clk 00:06:00]} {[%emt 00:00:41]} 24. Qf2 {[%clk 00:10:35]} {[%emt
00:00:10]} Rd7 {[%clk 00:05:59]} {[%emt 00:00:06]} 25. Nh4 {[%clk 00:10:38]}
{[%emt 00:00:02]} g6 {[%clk 00:06:02]} {[%emt 00:00:02]} 26. Qg3 {[%clk
00:10:02]} {[%emt 00:00:41]} Qg5 {[%clk 00:05:56]} {[%emt 00:00:10]} 27. Qf2
{[%clk 00:09:47]} {[%emt 00:00:21]} Ng7 {[%clk 00:05:27]} {[%emt 00:00:34]} 28.
Nhf3 {[%clk 00:09:23]} {[%emt 00:00:29]} Qe7 {[%clk 00:05:25]} {[%emt
00:00:07]} 29. Ne1 {[%clk 00:09:24]} {[%emt 00:00:04]} f5 {[%clk 00:04:45]}
{[%emt 00:00:45]} 30. g4 {[%clk 00:09:23]} {[%emt 00:00:06]} fxg4 {[%clk
00:04:32]} {[%emt 00:00:18]} 31. hxg4 {[%clk 00:09:26]} {[%emt 00:00:02]} h5
{[%clk 00:04:12]} {[%emt 00:00:24]} 32. gxh5 {[%clk 00:08:54]} {[%emt
00:00:38]} gxh5 {[%clk 00:04:04]} {[%emt 00:00:14]} 33. Nef3 {[%clk 00:08:53]}
{[%emt 00:00:05]} Rh6 {[%clk 00:02:17]} {[%emt 00:01:52]} 34. Qh2 {[%clk
00:08:22]} {[%emt 00:00:37]} Nb6 {[%clk 00:01:53]} {[%emt 00:00:29]} 35. Ra5
{[%clk 00:08:14]} {[%emt 00:00:12]} Rd8 {[%clk 00:01:46]} {[%emt 00:00:11]} 36.
Kd3 {[%clk 00:07:23]} {[%emt 00:00:57]} h4 {[%clk 00:01:38]} {[%emt 00:00:13]}
37. Rg1 {[%clk 00:07:05]} {[%emt 00:00:24]} Nd7 {[%clk 00:01:18]} {[%emt
00:00:25]} 38. Ng5 {[%clk 00:06:37]} {[%emt 00:00:33]} Rf8 {[%clk 00:01:10]}
{[%emt 00:00:13]} 39. Ndf3 {[%clk 00:06:29]} {[%emt 00:00:12]} Rh5 {[%clk
00:01:01]} {[%emt 00:00:14]} 40. Qh3 {[%clk 00:06:06]} {[%emt 00:00:28]} Nf6
{[%clk 00:01:01]} {[%emt 00:00:06]} 41. Rga1 {[%clk 00:06:05]} {[%emt
00:00:06]} Ra8 {[%clk 00:01:00]} {[%emt 00:00:05]} 42. Rf1 {[%clk 00:05:18]}
{[%emt 00:00:52]} Nh7 {[%clk 00:00:47]} {[%emt 00:00:18]} 43. Ne6 {[%clk
00:04:58]} {[%emt 00:00:25]} Nxe6 {[%clk 00:00:49]} {[%emt 00:00:04]} 44. dxe6
{[%clk 00:05:02]} Rf8 {[%clk 00:00:40]} {[%emt 00:00:14]} 45. Rfa1 {[%clk
00:04:24]} {[%emt 00:00:43]} Ra8 {[%clk 00:00:44]} 46. Rf1 {[%clk 00:03:58]}
{[%emt 00:00:31]} Rf8 {[%clk 00:00:47]} {[%emt 00:00:01]} 47. Rfa1 {[%clk
00:03:49]} {[%emt 00:00:14]} Ra8 {[%clk 00:00:50]} {[%emt 00:00:02]} 48. Rf1
{[%clk 00:03:50]} 1/2-1/2